[Event "46th GRE-chT Premier 2018"]
[Site "Rio Achaia"]
[Date "2018.07.12"]
[Round "4"]
[White "Damianou, Ioannis"]
[Black "Abelakiotis, Stavros"]
[Result "1/2-1/2"]
[ECO "B59"]
[WhiteElo "2058"]
[BlackElo "2029"]
[Annotator "NA"]
[PlyCount "77"]
[EventDate "2018.07.10"]
[EventType "team-tourn"]
[EventCountry "GRE"]
[SourceTitle "playchess.com"]
[Source "ChessBase"]
[SourceQuality "1"]
[TimeControl "40/5400+30:1800+30"]

1. e4 {[%emt 0:00:00]} c5 {[%emt 0:00:00]} 2. Nf3 {[%emt 0:00:00]} Nc6 {[%emt 0:00:23]} 3. d4 {[%emt 0:00:00]} cxd4 {[%emt 0:00:07]} 4. Nxd4 {[%emt 0:00:00]} Nf6 {[%emt 0:00:11]} 5. Nc3 {[%emt 0:00:02]} d6 {[%emt 0:00:07]} 6. Be2 {[%emt 0:00:20]} e5 {[%emt 0:00:11]} 7. Nb3 {[%emt 0:01:07]} Be7 {[%emt 0:00:25]} 8. Bg5 {[%emt 0:00:58]} Nxe4 {[%emt 0:05:54]} 9. Bxe7 {[%emt 0:00:07]} Nxc3 {[%emt 0:00:47]} 10. Bxd8 {[%emt 0:00:08]} Nxd1 {[%emt 0:00:06]} 11. Rxd1 {[%emt 0:03:32]} Kxd8 {[%emt 0:03:23]} 12. Rxd6+ {[%emt 0:00:12]} Ke7 {[%emt 0:00:46]} 13. Rd2 {[%emt 0:01:04]} Bf5 {[%emt 0:04:01]} 14. O-O {[%emt 0:03:08]} Rhd8 {[%emt 0:01:42]} 15. c3 {[%emt 0:01:51]} Rxd2 {[%emt 0:01:55]} 16. Nxd2 {[%emt 0:00:04]} Rd8 {[%emt 0:00:41]} 17. Nc4 {[%emt 0:01:05]} b5 {[%emt 0:07:52]} 18. Ne3 {[%emt 0:01:32]} Bd3 {[%emt 0:00:21]} 19. Bxd3 {[%emt 0:04:47]} Rxd3 {[%emt 0:00:08]} 20. Rd1 {[%emt 0:00:09]} Rxd1+ {[%emt 0:03:32]} 21. Nxd1 {[%emt 0:00:06]} f5 {[%emt 0:04:03]} 22. Kf1 {[%emt 0:06:54]} Kd6 {[%emt 0:02:51]} 23. Ke2 {[%emt 0:05:46]} g6 {[%emt 0:02:43]} 24. f3 {[%emt 0:02:12]} Kc5 {[%emt 0:02:51]} 25. Nf2 {[%emt 0:04:23]} a5 {[%emt 0:02:54]} 26. Nd3+ {[%emt 0:05:58]} Kd5 {[%emt 0:02:50]} 27. g4 {[%emt 0:16:14]} fxg4 {[%emt 0:15:51]} 28. fxg4 {[%emt 0:00:07]} Ke4 {[%emt 0:00:15]} 29. h3 {[%emt 0:03:41]} Ne7 {[%emt 0:02:37]} 30. Nc5+ {[%emt 0:02:57]} Kd5 {[%emt 0:01:00]} 31. Nd7 {[%emt 0:01:59]} Kd6 {[%emt 0:03:22]} 32. Nf6 {[%emt 0:01:40]} h6 {[%emt 0:01:01]} 33. h4 {[%emt 0:02:10]} Ke6 {[%emt 0:04:08]} 34. Ne4 {[%emt 0:01:12]} Nd5 {[%emt 0:06:43]} 35. Nc5+ {[%emt 0:01:58]} Kf6 {[%emt 0:08:34]} 36. Nd7+ {[%emt 0:00:13]} Ke6 {[%emt 0:01:05]} 37. Nc5+ {[%emt 0:01:25]} Kf6 {[%emt 0:00:08]} 38. Nd7+ {[%emt 0:00:15]} Ke6 {[%emt 0:02:36]} 39. Nc5+ {[%emt 0:00:23]} 1/2-1/2

[Event "46th GRE-chT Premier 2018"]
[Site "Rio Achaia"]
[Date "2018.07.12"]
[Round "4"]
[White "Tsagkaropoulos, Spyridon"]
[Black "Ilandzis, Spyridon"]
[Result "0-1"]
[ECO "E12"]
[WhiteElo "2052"]
[BlackElo "1980"]
[Annotator "NA"]
[PlyCount "68"]
[EventDate "2018.07.10"]
[EventType "team-tourn"]
[EventCountry "GRE"]
[SourceTitle "playchess.com"]
[Source "ChessBase"]
[SourceQuality "1"]
[TimeControl "40/5400+30:1800+30"]

1. d4 {[%emt 0:07:11]} Nf6 {[%emt 0:00:00]} 2. c4 {[%emt 0:00:59]} e6 {[%emt 0:00:26]} 3. Nf3 {[%emt 0:00:13]} b6 {[%emt 0:01:35]} 4. a3 {[%emt 0:00:44]} Ba6 {[%emt 0:03:41]} 5. Qc2 {[%emt 0:10:25]} c5 {[%emt 0:00:17]} 6. d5 {[%emt 0:12:44]} exd5 {[%emt 0:03:35]} 7. cxd5 {[%emt 0:00:13]} Bb7 {[%emt 0:00:09]} 8. Nc3 {[%emt 0:02:37]} Nxd5 {[%emt 0:04:30]} 9. Nb5 {[%emt 0:02:37]} Be7 {[%emt 0:10:10]} 10. Qe4 {[%emt 0:23:07]} Bc6 {[%emt 0:10:30]} 11. Nd6+ {[%emt 0:01:16]} Kf8 {[%emt 0:00:12]} 12. Nf5 {[%emt 0:01:00]} Bf6 {[%emt 0:00:46]} 13. Qg4 {[%emt 0:03:11]} Qe8 {[%emt 0:08:21]} 14. h4 {[%emt 0:19:31]} h5 {[%emt 0:14:41]} 15. Qc4 {[%emt 0:02:09]} Qe6 {[%emt 0:03:52]} 16. Qc2 {[%emt 0:00:32]} Nc7 {[%emt 0:09:03]} 17. Ng3 {[%emt 0:01:13]} d5 {[%emt 0:04:55]} 18. Bf4 {[%emt 0:01:19]} Nba6 {[%emt 0:01:31]} 19. e3 {[%emt 0:02:32]} d4 {[%emt 0:03:12]} 20. Bc4 {[%emt 0:04:36]} Bd5 {[%emt 0:00:42]} 21. Bxd5 {[%emt 0:00:19]} Nxd5 {[%emt 0:00:18]} 22. O-O {[%emt 0:00:24]} dxe3 {[%emt 0:01:33]} 23. fxe3 {[%emt 0:01:59]} Nxf4 {[%emt 0:02:22]} 24. exf4 {[%emt 0:00:02]} Qe3+ {[%emt 0:00:25]} 25. Kh1 {[%emt 0:00:23]} Qxf4 {[%emt 0:00:18]} 26. Nf5 {[%emt 0:00:17]} Nc7 {[%emt 0:02:41]} 27. g3 {[%emt 0:00:30]} Qg4 {[%emt 0:00:37]} 28. Kg2 {[%emt 0:00:26]} Re8 {[%emt 0:01:57]} 29. Rae1 {[%emt 0:00:13]} Rxe1 {[%emt 0:01:45]} 30. Rxe1 {[%emt 0:00:01]} Ne6 {[%emt 0:00:47]} 31. Ng1 {[%emt 0:02:15]} g6 {[%emt 0:03:58]} 32. Nd6 {[%emt 0:00:27]} Qd4 {[%emt 0:01:03]} 33. Rxe6 {[%emt 0:00:33]} Qd5+ {[%emt 0:02:06]} 34. Qe4 {[%emt 0:00:02]} fxe6 {[%emt 0:00:51]} 0-1

[Event "46th GRE-chT Premier 2018"]
[Site "Rio Achaia"]
[Date "2018.07.12"]
[Round "4"]
[White "Pappas, Apostolos"]
[Black "Papahristoudis, Anastasios"]
[Result "1/2-1/2"]
[ECO "A14"]
[WhiteElo "2034"]
[BlackElo "2012"]
[Annotator "NA"]
[PlyCount "60"]
[EventDate "2018.07.10"]
[EventType "team-tourn"]
[EventCountry "GRE"]
[SourceTitle "playchess.com"]
[Source "ChessBase"]
[SourceQuality "1"]
[TimeControl "40/5400+30:1800+30"]

1. Nf3 d5 2. c4 e6 3. g3 Nf6 4. Bg2 Be7 5. O-O dxc4 6. Na3 Bxa3 7. bxa3 Nc6 8. Qa4 O-O 9. Qxc4 Re8 10. d4 Qd5 11. Qd3 e5 12. e4 Qxe4 13. Qxe4 Nxe4 14. dxe5 Be6 15. Re1 Nc5 16. Be3 Nd3 17. Red1 Rad8 18. Rd2 Bc4 19. Rad1 Ba6 20. h3 Ncxe5 21. Nxe5 Rxe5 22. Bxb7 Bxb7 23. Rxd3 Red5 24. Rxd5 Bxd5 25. Bxa7 c6 26. Rb1 Bxa2 27. Rb8 Rxb8 28. Bxb8 f5 29. Kf1 Kf7 30. Ke2 Ke6 1/2-1/2

[Event "46th GRE-chT Premier 2018"]
[Site "Rio Achaia"]
[Date "2018.07.12"]
[Round "4"]
[White "Gimnopoulos, Lazaros"]
[Black "Manelidis, Savvas"]
[Result "1/2-1/2"]
[ECO "C50"]
[WhiteElo "2033"]
[BlackElo "2090"]
[Annotator "NA"]
[PlyCount "84"]
[EventDate "2018.07.10"]
[EventType "team-tourn"]
[EventCountry "GRE"]
[SourceTitle "playchess.com"]
[Source "ChessBase"]
[SourceQuality "1"]
[TimeControl "40/5400+30:1800+30"]

1. e4 {[%emt 0:00:00]} e5 {[%emt 0:00:00]} 2. Nf3 {[%emt 0:00:00]} Nc6 {[%emt 0:00:00]} 3. Bc4 {[%emt 0:00:20]} Bc5 {[%emt 0:00:09]} 4. Nc3 {[%emt 0:00:26]} Nf6 {[%emt 0:01:06]} 5. d3 {[%emt 0:00:17]} h6 {[%emt 0:01:42]} 6. a3 {[%emt 0:00:25]} d6 {[%emt 0:00:49]} 7. h3 {[%emt 0:00:07]} a6 {[%emt 0:02:29]} 8. Be3 {[%emt 0:01:35]} b5 {[%emt 0:06:02]} 9. Ba2 {[%emt 0:04:02]} Ba7 {[%emt 0:08:38]} 10. Bxa7 {[%emt 0:06:28]} Rxa7 {[%emt 0:00:09]} 11. d4 {[%emt 0:00:12]} exd4 {[%emt 0:08:36]} 12. Nxd4 {[%emt 0:01:40]} Nxd4 {[%emt 0:03:17]} 13. Qxd4 {[%emt 0:00:33]} c5 {[%emt 0:00:05]} 14. Qe3 {[%emt 0:02:13]} O-O {[%emt 0:01:53]} 15. O-O {[%emt 0:15:04]} Re8 {[%emt 0:10:21]} 16. f3 {[%emt 0:06:57]} Rd7 {[%emt 0:11:18]} 17. Nd5 {[%emt 0:04:28]} Bb7 {[%emt 0:03:31]} 18. Rfd1 {[%emt 0:15:08]} Re5 {[%emt 0:09:55]} 19. c4 {[%emt 0:07:02]} Nxd5 {[%emt 0:04:05]} 20. cxd5 {[%emt 0:00:23]} f5 {[%emt 0:00:50]} 21. Bb1 {[%emt 0:09:28]} Qe8 {[%emt 0:09:07]} 22. Qf2 {[%emt 0:02:48]} fxe4 {[%emt 0:03:03]} 23. Bxe4 {[%emt 0:00:55]} Qh5 {[%emt 0:01:03]} 24. b4 {[%emt 0:03:18]} Rc7 {[%emt 0:06:12]} 25. a4 {[%emt 0:01:06]} bxa4 {[%emt 0:00:42]} 26. bxc5 {[%emt 0:01:25]} Rxc5 {[%emt 0:00:56]} 27. Rxa4 {[%emt 0:03:00]} Qe8 {[%emt 0:06:16]} 28. Qa2 {[%emt 0:04:49]} Qc8 {[%emt 0:00:59]} 29. Kh2 {[%emt 0:00:21]} h5 {[%emt 0:00:37]} 30. Rb4 {[%emt 0:01:07]} a5 {[%emt 0:00:33]} 31. Rb6 {[%emt 0:00:37]} Re7 {[%emt 0:00:34]} 32. Qf2 {[%emt 0:00:47]} Rc1 {[%emt 0:00:23]} 33. Rxc1 {[%emt 0:00:23]} Qxc1 {[%emt 0:00:02]} 34. Qg3 {[%emt 0:00:22]} Qc7 {[%emt 0:00:46]} 35. Rxd6 {[%emt 0:00:17]} h4 {[%emt 0:00:26]} 36. Qg6 {[%emt 0:00:47]} Kf8 {[%emt 0:00:54]} 37. Qf5+ {[%emt 0:01:01]} Rf7 {[%emt 0:00:17]} 38. Qe5 {[%emt 0:01:29]} Re7 {[%emt 0:00:02]} 39. Qf4+ {[%emt 0:02:18]} Rf7 {[%emt 0:00:01]} 40. Qe5 {[%emt 0:00:00]} Re7 {[%emt 0:00:00]} 41. Qf4+ {[%emt 0:17:19]} Rf7 {[%emt 0:31:50]} 42. Qe5 {[%emt 0:10:40]} Re7 {[%emt 0:00:02]} 1/2-1/2

[Event "46th GRE-chT Premier 2018"]
[Site "Rio Achaia"]
[Date "2018.07.12"]
[Round "4"]
[White "Petrakis, Stylianos"]
[Black "Loukopoulos, Panagiotis-Athanasi"]
[Result "1-0"]
[ECO "B42"]
[WhiteElo "2024"]
[BlackElo "1942"]
[Annotator "NA"]
[PlyCount "77"]
[EventDate "2018.07.10"]
[EventType "team-tourn"]
[EventCountry "GRE"]
[SourceTitle "playchess.com"]
[Source "ChessBase"]
[SourceQuality "1"]
[TimeControl "40/5400+30:1800+30"]

1. e4 {[%emt 0:00:00]} c5 {[%emt 0:00:00]} 2. Nf3 {[%emt 0:00:05]} e6 {[%emt 0:00:00]} 3. d4 {[%emt 0:00:09]} cxd4 {[%emt 0:00:06]} 4. Nxd4 {[%emt 0:00:05]} a6 {[%emt 0:00:09]} 5. Bd3 {[%emt 0:00:33]} Nf6 {[%emt 0:00:13]} 6. O-O {[%emt 0:00:15]} Qc7 {[%emt 0:00:11]} 7. Qe2 {[%emt 0:00:26]} d6 {[%emt 0:00:13]} 8. f4 {[%emt 0:01:34]} Nbd7 {[%emt 0:00:15]} 9. Kh1 {[%emt 0:00:29]} Be7 {[%emt 0:01:05]} 10. Nc3 {[%emt 0:00:54]} b5 {[%emt 0:00:15]} 11. Bd2 {[%emt 0:02:08]} Bb7 {[%emt 0:00:26]} 12. b4 {[%emt 0:02:15]} O-O {[%emt 0:22:05]} 13. a4 {[%emt 0:00:47]} bxa4 {[%emt 0:00:19]} 14. Nxa4 {[%emt 0:00:14]} d5 {[%emt 0:08:49]} 15. e5 {[%emt 0:01:35]} Ne4 {[%emt 0:00:06]} 16. Nb3 {[%emt 0:29:33]} Nxd2 {[%emt 0:13:49]} 17. Qxd2 {[%emt 0:00:13]} Bc6 {[%emt 0:07:36]} 18. Nd4 {[%emt 0:10:09]} Bb7 {[%emt 0:01:05]} 19. Rab1 {[%emt 0:08:38]} Nb6 {[%emt 0:10:28]} 20. Nxb6 {[%emt 0:01:17]} Qxb6 {[%emt 0:00:04]} 21. c3 {[%emt 0:11:06]} g6 {[%emt 0:04:35]} 22. Rf3 {[%emt 0:06:00]} Rfe8 {[%emt 0:00:38]} 23. Rh3 {[%emt 0:04:52]} Bf8 {[%emt 0:02:04]} 24. Qe1 {[%emt 0:03:14]} Qd8 {[%emt 0:01:05]} 25. Ra1 {[%emt 0:02:50]} Bg7 {[%emt 0:13:47]} 26. Kg1 {[%emt 0:04:41]} f5 {[%emt 0:08:48]} 27. Ra5 {[%emt 0:04:14]} Bf8 {[%emt 0:01:00]} 28. Rf3 {[%emt 0:04:49]} Qb6 {[%emt 0:00:38]} 29. Qe3 {[%emt 0:00:50]} Rec8 {[%emt 0:01:41]} 30. Be2 {[%emt 0:00:34]} Rxc3 {[%emt 0:01:28]} 31. Qxc3 {[%emt 0:00:22]} Bxb4 {[%emt 0:00:04]} 32. Qb2 {[%emt 0:00:29]} Qxa5 {[%emt 0:01:57]} 33. Nxe6 {[%emt 0:00:38]} Qb6+ {[%emt 0:00:23]} 34. Kh1 {[%emt 0:00:27]} a5 {[%emt 0:00:43]} 35. Ng5 {[%emt 0:00:30]} h6 {[%emt 0:00:45]} 36. e6 {[%emt 0:00:33]} d4 {[%emt 0:00:30]} 37. Nf7 {[%emt 0:00:27]} Qxe6 {[%emt 0:00:23]} 38. Nxh6+ {[%emt 0:00:30]} Kf8 {[%emt 0:00:32]} 39. Rf1 {[%emt 0:00:32]} 1-0

[Event "46th GRE-chT Premier 2018"]
[Site "Rio Achaia"]
[Date "2018.07.12"]
[Round "4"]
[White "Dimopoulos, Symeon"]
[Black "Klerides, Paris"]
[Result "1/2-1/2"]
[ECO "B52"]
[WhiteElo "2020"]
[BlackElo "2196"]
[Annotator "NA"]
[PlyCount "64"]
[EventDate "2018.07.10"]
[EventType "team-tourn"]
[EventCountry "GRE"]
[SourceTitle "playchess.com"]
[Source "ChessBase"]
[SourceQuality "1"]
[TimeControl "40/5400+30:1800+30"]

1. e4 {[%emt 0:00:00]} c5 {[%emt 0:00:16]} 2. Nf3 {[%emt 0:00:13]} d6 {[%emt 0:00:19]} 3. Bb5+ {[%emt 0:00:51]} Bd7 {[%emt 0:00:14]} 4. Bxd7+ {[%emt 0:00:39]} Qxd7 {[%emt 0:00:04]} 5. c4 {[%emt 0:00:26]} Nc6 {[%emt 0:00:55]} 6. d4 {[%emt 0:00:58]} cxd4 {[%emt 0:00:46]} 7. Nxd4 {[%emt 0:00:22]} Nf6 {[%emt 0:00:59]} 8. Nc3 {[%emt 0:00:54]} g6 {[%emt 0:00:25]} 9. b3 {[%emt 0:02:58]} Bg7 {[%emt 0:00:39]} 10. Bb2 {[%emt 0:00:26]} O-O {[%emt 0:00:16]} 11. O-O {[%emt 0:00:26]} Rac8 {[%emt 0:11:59]} 12. Rc1 {[%emt 0:08:24]} a6 {[%emt 0:07:15]} 13. Nxc6 {[%emt 0:04:43]} Rxc6 {[%emt 0:11:38]} 14. Qe2 {[%emt 0:03:00]} Rfc8 {[%emt 0:08:18]} 15. Nd5 {[%emt 0:19:23]} b5 {[%emt 0:09:47]} 16. Nb4 {[%emt 0:19:49]} Rb6 {[%emt 0:16:57]} 17. Bd4 {[%emt 0:00:52]} Rb7 {[%emt 0:00:19]} 18. cxb5 {[%emt 0:11:34]} axb5 {[%emt 0:05:22]} 19. Bxf6 {[%emt 0:08:14]} Bxf6 {[%emt 0:00:49]} 20. Nd5 {[%emt 0:00:07]} Bg5 {[%emt 0:10:14]} 21. f4 {[%emt 0:00:11]} Rxc1 {[%emt 0:01:07]} 22. Rxc1 {[%emt 0:00:22]} e6 {[%emt 0:00:16]} 23. fxg5 {[%emt 0:00:46]} exd5 {[%emt 0:00:04]} 24. exd5 {[%emt 0:00:18]} Rb8 {[%emt 0:05:08]} 25. h4 {[%emt 0:03:50]} Re8 {[%emt 0:03:01]} 26. Qf2 {[%emt 0:06:30]} Re5 {[%emt 0:01:41]} 27. Qf3 {[%emt 0:03:05]} Qe8 {[%emt 0:01:28]} 28. g4 {[%emt 0:01:20]} Re3 {[%emt 0:02:54]} 29. Qf4 {[%emt 0:00:24]} Re4 {[%emt 0:00:35]} 30. Qf3 {[%emt 0:00:54]} Re3 {[%emt 0:00:03]} 31. Qf4 {[%emt 0:02:36]} Re4 {[%emt 0:00:02]} 32. Qf3 {[%emt 0:00:51]} Re3 {[%emt 0:01:04]} 1/2-1/2

[Event "46th GRE-chT Premier 2018"]
[Site "Rio Achaia"]
[Date "2018.07.12"]
[Round "4"]
[White "Tsivelekidou, Evgenia"]
[Black "Marinakis, Hristos"]
[Result "1-0"]
[ECO "D30"]
[WhiteElo "2007"]
[BlackElo "1942"]
[Annotator "NA"]
[PlyCount "55"]
[EventDate "2018.07.10"]
[EventType "team-tourn"]
[EventCountry "GRE"]
[SourceTitle "playchess.com"]
[Source "ChessBase"]
[SourceQuality "1"]
[TimeControl "40/5400+30:1800+30"]

1. d4 {[%emt 0:00:00]} d5 {[%emt 0:00:00]} 2. c4 {[%emt 0:00:00]} e6 {[%emt 0:00:00]} 3. Nf3 {[%emt 0:00:00]} c5 {[%emt 0:00:00]} 4. cxd5 {[%emt 0:00:00]} exd5 {[%emt 0:00:00]} 5. Bg5 {[%emt 0:00:14]} Be7 {[%emt 0:03:40]} 6. Bxe7 {[%emt 0:00:05]} Qxe7 {[%emt 0:01:31]} 7. Nc3 {[%emt 0:03:31]} Nf6 {[%emt 0:00:19]} 8. e3 {[%emt 0:01:40]} Nc6 {[%emt 0:03:42]} 9. Be2 {[%emt 0:03:11]} O-O {[%emt 0:01:33]} 10. dxc5 {[%emt 0:02:19]} Qxc5 {[%emt 0:01:03]} 11. O-O {[%emt 0:00:31]} Bf5 {[%emt 0:12:29]} 12. Rc1 {[%emt 0:03:50]} Qa5 {[%emt 0:16:58]} 13. Qb3 {[%emt 0:04:43]} Rab8 {[%emt 0:06:53]} 14. Rfd1 {[%emt 0:03:19]} Rfd8 {[%emt 0:00:48]} 15. Nd4 {[%emt 0:06:17]} Bg6 {[%emt 0:03:33]} 16. a3 {[%emt 0:05:37]} Qc7 {[%emt 0:07:16]} 17. Nf3 {[%emt 0:06:49]} Qa5 {[%emt 0:08:44]} 18. Qb5 {[%emt 0:06:33]} a6 {[%emt 0:02:07]} 19. Qb3 {[%emt 0:04:48]} Rd7 {[%emt 0:06:03]} 20. Na4 {[%emt 0:12:30]} Bh5 {[%emt 0:05:53]} 21. Rxc6 {[%emt 0:01:34]} Bxf3 {[%emt 0:01:13]} 22. Bxf3 {[%emt 0:03:06]} Qb5 {[%emt 0:03:47]} 23. Rc3 {[%emt 0:01:54]} d4 {[%emt 0:01:40]} 24. exd4 {[%emt 0:02:27]} Re8 {[%emt 0:01:34]} 25. Qxb5 {[%emt 0:01:40]} axb5 {[%emt 0:00:04]} 26. Nc5 {[%emt 0:00:55]} Rxd4 {[%emt 0:00:04]} 27. Rcd3 {[%emt 0:01:29]} Rxd3 {[%emt 0:00:06]} 28. Nxd3 {[%emt 0:00:05]} 1-0

[Event "46th GRE-chT Premier 2018"]
[Site "Rio Achaia"]
[Date "2018.07.12"]
[Round "4"]
[White "Kadianis, Georgios"]
[Black "Tsekmes, Dimitrios"]
[Result "0-1"]
[ECO "C47"]
[WhiteElo "2002"]
[BlackElo "2170"]
[Annotator "NA"]
[PlyCount "80"]
[EventDate "2018.07.10"]
[EventType "team-tourn"]
[EventCountry "GRE"]
[SourceTitle "playchess.com"]
[Source "ChessBase"]
[SourceQuality "1"]
[TimeControl "40/5400+30:1800+30"]

1. e4 {[%emt 0:00:00]} e5 {[%emt 0:00:00]} 2. Nf3 {[%emt 0:00:00]} Nc6 {[%emt 0:00:00]} 3. Nc3 {[%emt 0:00:00]} Nf6 {[%emt 0:00:02]} 4. d4 {[%emt 0:00:00]} exd4 {[%emt 0:00:11]} 5. Nxd4 {[%emt 0:00:00]} Bc5 {[%emt 0:00:33]} 6. Be3 {[%emt 0:00:14]} Bb6 {[%emt 0:00:46]} 7. Qd2 {[%emt 0:00:38]} Ng4 {[%emt 0:06:41]} 8. Nxc6 {[%emt 0:03:43]} bxc6 {[%emt 0:21:03]} 9. Bd4 {[%emt 0:00:31]} Bxd4 {[%emt 0:20:51]} 10. Qxd4 {[%emt 0:00:07]} Qf6 {[%emt 0:00:14]} 11. Qd2 {[%emt 0:05:01]} d6 {[%emt 0:04:39]} 12. h3 {[%emt 0:01:33]} Ne5 {[%emt 0:06:00]} 13. O-O-O {[%emt 0:01:48]} O-O {[%emt 0:01:31]} 14. f4 {[%emt 0:07:26]} Ng6 {[%emt 0:03:07]} 15. g3 {[%emt 0:01:28]} Rb8 {[%emt 0:01:27]} 16. Be2 {[%emt 0:03:04]} c5 {[%emt 0:05:52]} 17. Rdf1 {[%emt 0:13:01]} Bb7 {[%emt 0:01:44]} 18. Bf3 {[%emt 0:10:15]} Rfe8 {[%emt 0:01:02]} 19. Re1 {[%emt 0:04:12]} a5 {[%emt 0:03:26]} 20. h4 {[%emt 0:02:12]} Nf8 {[%emt 0:01:52]} 21. Nd1 {[%emt 0:07:58]} a4 {[%emt 0:02:28]} 22. a3 {[%emt 0:02:01]} Ne6 {[%emt 0:11:56]} 23. c3 {[%emt 0:01:28]} c4 {[%emt 0:01:40]} 24. Nf2 {[%emt 0:10:35]} Nc5 {[%emt 0:00:26]} 25. Qc2 {[%emt 0:03:13]} Bc6 {[%emt 0:02:18]} 26. Kb1 {[%emt 0:09:42]} Rb6 {[%emt 0:00:43]} 27. Ka2 {[%emt 0:00:31]} Reb8 {[%emt 0:00:36]} 28. Rb1 {[%emt 0:00:20]} Qd8 {[%emt 0:01:02]} 29. Be2 {[%emt 0:03:00]} Bb5 {[%emt 0:00:43]} 30. Rhd1 {[%emt 0:01:13]} Qc8 {[%emt 0:00:58]} 31. h5 {[%emt 0:03:55]} Qe6 {[%emt 0:00:59]} 32. Bg4 {[%emt 0:02:33]} Qe8 {[%emt 0:00:32]} 33. h6 {[%emt 0:01:07]} Nd3 {[%emt 0:00:30]} 34. hxg7 {[%emt 0:00:53]} Ba6 {[%emt 0:00:19]} 35. Bf5 {[%emt 0:00:41]} Rxb2+ {[%emt 0:00:33]} 36. Rxb2 {[%emt 0:00:10]} Rxb2+ {[%emt 0:00:02]} 37. Qxb2 {[%emt 0:00:05]} Nxb2 {[%emt 0:00:01]} 38. Rh1 {[%emt 0:01:32]} Qb5 {[%emt 0:00:30]} 39. Rxh7 {[%emt 0:01:00]} Qb3+ {[%emt 0:00:48]} 40. Ka1 {[%emt 0:00:00]} Qxc3 {[%emt 0:00:00]} 0-1

[Event "46th GRE-chT Premier 2018"]
[Site "Rio Achaia"]
[Date "2018.07.12"]
[Round "4"]
[White "Vatkali, Dimitra"]
[Black "Antoniadou, Paraskevi"]
[Result "0-1"]
[ECO "C54"]
[WhiteElo "1979"]
[BlackElo "1764"]
[Annotator "NA"]
[PlyCount "80"]
[EventDate "2018.07.10"]
[EventType "team-tourn"]
[EventCountry "GRE"]
[SourceTitle "playchess.com"]
[Source "ChessBase"]
[SourceQuality "1"]
[TimeControl "40/5400+30:1800+30"]

1. e4 {[%emt 0:00:00]} e5 {[%emt 0:00:00]} 2. Nf3 {[%emt 0:00:00]} Nc6 {[%emt 0:00:00]} 3. Bc4 {[%emt 0:00:00]} Bc5 {[%emt 0:00:00]} 4. c3 {[%emt 0:00:16]} Nf6 {[%emt 0:00:05]} 5. d3 {[%emt 0:00:06]} d6 {[%emt 0:00:13]} 6. b4 {[%emt 0:00:17]} Bb6 {[%emt 0:00:21]} 7. a4 {[%emt 0:00:07]} a6 {[%emt 0:00:18]} 8. O-O {[%emt 0:00:25]} h6 {[%emt 0:01:33]} 9. Re1 {[%emt 0:09:12]} O-O {[%emt 0:00:40]} 10. h3 {[%emt 0:07:51]} Ne7 {[%emt 0:02:25]} 11. Nbd2 {[%emt 0:04:54]} Ng6 {[%emt 0:00:52]} 12. Nf1 {[%emt 0:00:28]} Nh7 {[%emt 0:01:47]} 13. Ng3 {[%emt 0:15:44]} Qf6 {[%emt 0:02:32]} 14. Nh5 {[%emt 0:02:02]} Qe7 {[%emt 0:00:35]} 15. d4 {[%emt 0:07:03]} Ng5 {[%emt 0:10:13]} 16. Nxg5 {[%emt 0:20:26]} hxg5 {[%emt 0:00:09]} 17. Be3 {[%emt 0:14:22]} Nf4 {[%emt 0:04:48]} 18. dxe5 {[%emt 0:01:30]} dxe5 {[%emt 0:00:09]} 19. Bxb6 {[%emt 0:02:21]} cxb6 {[%emt 0:00:07]} 20. Nxf4 {[%emt 0:01:10]} gxf4 {[%emt 0:01:21]} 21. Bd5 {[%emt 0:00:39]} Qg5 {[%emt 0:08:55]} 22. Qf3 {[%emt 0:00:19]} Rb8 {[%emt 0:04:33]} 23. Red1 {[%emt 0:01:09]} g6 {[%emt 0:15:35]} 24. c4 {[%emt 0:00:13]} Kg7 {[%emt 0:02:25]} 25. a5 {[%emt 0:00:27]} Qf6 {[%emt 0:06:38]} 26. axb6 {[%emt 0:05:25]} Qxb6 {[%emt 0:00:34]} 27. Qc3 {[%emt 0:00:07]} Qf6 {[%emt 0:01:02]} 28. Rd3 {[%emt 0:02:04]} Rh8 {[%emt 0:05:16]} 29. c5 {[%emt 0:00:44]} Bd7 {[%emt 0:04:07]} 30. Bc4 {[%emt 0:01:37]} Bc6 {[%emt 0:00:49]} 31. Rd6 {[%emt 0:02:07]} Qg5 {[%emt 0:05:07]} 32. Bd5 {[%emt 0:01:36]} Bb5 {[%emt 0:00:48]} 33. Re1 {[%emt 0:00:56]} Qe7 {[%emt 0:06:15]} 34. Bc4 {[%emt 0:00:43]} Bxc4 {[%emt 0:02:30]} 35. Qxc4 {[%emt 0:00:01]} f3 {[%emt 0:01:04]} 36. Qc1 {[%emt 0:00:32]} Rxh3 {[%emt 0:06:49]} 37. Rd3 {[%emt 0:00:09]} Rh1+ {[%emt 0:01:35]} 38. Kxh1 {[%emt 0:00:03]} Qh4+ {[%emt 0:00:23]} 39. Kg1 {[%emt 0:00:05]} Rh8 {[%emt 0:00:04]} 40. Kf1 {[%emt 0:00:00]} Qh1# {[%emt 0:00:00]} 0-1

[Event "46th GRE-chT Premier 2018"]
[Site "Rio Achaia"]
[Date "2018.07.12"]
[Round "4"]
[White "Karapiperis, Alexandros"]
[Black "Gkonelas, Nikolaos"]
[Result "1/2-1/2"]
[ECO "C45"]
[WhiteElo "1973"]
[BlackElo "1917"]
[Annotator "NA"]
[PlyCount "66"]
[EventDate "2018.07.10"]
[EventType "team-tourn"]
[EventCountry "GRE"]
[SourceTitle "playchess.com"]
[Source "ChessBase"]
[SourceQuality "1"]
[TimeControl "40/5400+30:1800+30"]

1. e4 {[%emt 0:00:00]} e5 {[%emt 0:00:00]} 2. Nf3 {[%emt 0:00:00]} Nc6 {[%emt 0:00:00]} 3. d4 {[%emt 0:00:06]} exd4 {[%emt 0:00:00]} 4. Nxd4 {[%emt 0:00:06]} Nf6 {[%emt 0:00:06]} 5. Nxc6 {[%emt 0:00:21]} bxc6 {[%emt 0:00:13]} 6. e5 {[%emt 0:00:07]} Qe7 {[%emt 0:00:20]} 7. Qe2 {[%emt 0:00:11]} Nd5 {[%emt 0:00:10]} 8. c4 {[%emt 0:00:15]} Ba6 {[%emt 0:00:12]} 9. Nd2 {[%emt 0:00:18]} Nb6 {[%emt 0:06:27]} 10. b3 {[%emt 0:03:45]} g6 {[%emt 0:04:11]} 11. Bb2 {[%emt 0:07:38]} Bg7 {[%emt 0:00:35]} 12. O-O-O {[%emt 0:00:42]} O-O-O {[%emt 0:07:33]} 13. g3 {[%emt 0:06:18]} Rhe8 {[%emt 0:02:09]} 14. f4 {[%emt 0:04:46]} Kb8 {[%emt 0:16:13]} 15. Bg2 {[%emt 0:07:55]} Bb7 {[%emt 0:08:14]} 16. Qf2 {[%emt 0:07:02]} f6 {[%emt 0:07:33]} 17. Rhe1 {[%emt 0:05:33]} fxe5 18. fxe5 {[%emt 0:05:36]} Rf8 {[%emt 0:05:29]} 19. Qe3 {[%emt 0:02:17]} Rde8 {[%emt 0:02:04]} 20. Bd4 {[%emt 0:09:30]} Rf7 {[%emt 0:13:40]} 21. Nf3 {[%emt 0:07:39]} Qf8 {[%emt 0:06:01]} 22. c5 {[%emt 0:15:50]} Nd5 {[%emt 0:00:55]} 23. Qe4 {[%emt 0:00:45]} Rfe7 {[%emt 0:05:39]} 24. Bh3 {[%emt 0:04:33]} Ka8 {[%emt 0:06:39]} 25. Kb2 {[%emt 0:03:17]} Qh8 {[%emt 0:00:44]} 26. Rd2 {[%emt 0:00:56]} Ba6 {[%emt 0:02:06]} 27. Ka1 {[%emt 0:02:36]} Bb7 {[%emt 0:01:53]} 28. Kb2 {[%emt 0:00:27]} Ba6 {[%emt 0:00:12]} 29. Ka1 {[%emt 0:01:14]} Kb8 {[%emt 0:00:33]} 30. Kb2 {[%emt 0:01:00]} Bb7 {[%emt 0:00:24]} 31. Ka1 {[%emt 0:00:10]} Ka8 {[%emt 0:01:10]} 32. Kb2 {[%emt 0:02:39]} Bc8 {[%emt 0:01:17]} 33. Ka1 {[%emt 0:00:19]} Ba6 {[%emt 0:00:18]} 1/2-1/2